bitfinex-derivatives/quotes_BNBF0:USTF0_20250425
["timestamp","ask_amount","ask_price","bid_price","bid_amount"]
[1745620606223,1.26947783,602.11,599.49,0.30568926]
[1745620606426,1.26947783,602.11,599.5,0.30568926]
[1745620606727,1.26947783,602.11,599.51,0.30568926]
[1745620606929,1.26947783,602.11,599.52,0.30568926]
[1745620607123,1.26947783,602.11,599.53,0.30568926]
[1745620607326,1.26947783,602.11,599.54,0.30568926]
[1745620607627,1.26947783,602.11,599.55,0.3056895]
[1745620607925,1.26947783,602.11,599.56,0.3056895]
[1745620608122,1.26947783,602.11,599.57,0.3056895]
[1745620608331,1.26947783,602.11,599.58,0.3056895]
[1745620608527,1.26947783,602.11,599.59,0.3056895]
[1745620608824,1.26947783,602.11,599.6,0.3056895]
[1745620609030,1.26947783,602.11,599.61,0.3056895]
[1745620609230,1.26947783,602.11,599.62,0.3056895]
[1745620609421,0.28975009,602.1,599.52,0.28975009]
[1745620609723,0.28975009,602.1,599.53,0.3056895]
[1745620609922,0.28975009,602.1,599.54,0.3056895]
[1745620610125,0.28975009,602.1,599.55,0.3056895]
[1745620610323,0.28975009,602.1,599.56,0.3056895]
[1745620610522,0.28975009,602.1,599.57,0.3056895]
[1745620610728,0.28975009,602.1,599.58,0.3056895]
[1745620610931,0.28975009,602.1,599.59,0.3056895]
[1745620611132,1.26947783,602.11,599.6,0.3056895]
[1745620611329,0.28973923,602.09,599.61,0.3056895]
[1745620611533,0.28973923,602.09,599.62,0.3056895]
[1745620611733,0.28973923,602.09,599.63,0.3056895]
[1745620611933,0.28973923,602.09,599.64,0.3056895]
[1745620612134,0.28973923,602.09,599.54,0.28973923]
[1745620612333,0.28973923,602.09,599.55,0.30570612]
[1745620612629,0.28973923,602.09,599.54,0.28973923]
[1745620612630,1.26947783,602.01,599.56,0.30570612]
[1745620612834,1.26947783,602.01,599.57,0.30570612]
[1745620613028,1.26947783,602.01,599.58,0.30570612]
[1745620613232,1.26947783,602.01,599.59,0.30570612]
[1745620613534,1.26947783,602.01,599.6,0.30570612]
[1745620613936,1.26947783,602.01,599.61,0.30570612]
[1745620614131,1.26947783,602.01,599.55,0.30570612]
[1745620614335,1.26947783,602.01,599.56,0.30570612]
[1745620614533,1.26947783,602.01,599.57,0.30570612]
[1745620614735,1.26947783,602.06,599.58,0.30570612]
[1745620614936,1.26947783,602.06,599.59,0.30570612]
[1745620615137,1.26947783,602.06,599.6,0.30570612]
[1745620615437,0.28975612,602.05,599.61,0.30570612]
[1745620615637,0.28975612,602.05,599.62,0.30570612]
[1745620615836,0.28975612,602.05,599.63,0.30570612]
[1745620616036,0.28975612,602.05,599.64,0.30570612]
[1745620616239,0.28975612,602.05,599.65,0.30570612]
[1745620616531,0.28975612,602.05,599.66,0.30570612]
[1745620616738,0.28975612,602.05,599.57,0.30570612]
[1745620616933,0.28975612,602.05,599.58,0.30573682]
[1745620617133,1.26947783,602.06,599.57,0.30573682]
[1745620617334,1.26947783,602.06,599.44,0.30573682]
[1745620617534,1.26947783,601.98,599.45,0.30573682]
[1745620617734,1.26947783,601.98,599.44,0.30573682]
[1745620618240,0.28978025,601.97,599.44,0.30573682]
[1745620618440,0.28978025,601.97,599.45,0.28978025]
[1745620618939,0.28978025,601.97,599.46,0.30574029]
[1745620620041,1.26947783,601.98,599.46,0.30574029]
[1745620620234,1.26947783,601.98,599.44,0.30574029]
[1745620621039,0.28978025,601.97,599.45,0.28978025]
[1745620621441,0.28978025,601.97,599.46,0.30573559]
[1745620623037,1.26947783,602.14,599.46,0.30573559]
[1745620623238,1.26947783,602.14,599.44,0.30573559]
[1745620624243,0.28976577,602.13,599.45,0.28976577]
[1745620624642,0.28976577,602.13,599.46,0.3057442]
[1745620625249,1.26947783,602.05,599.46,0.3057442]
[1745620625545,1.26947783,602.05,599.45,0.28976577]
[1745620625746,1.26947783,602.05,599.46,0.30573997]
[1745620625939,1.26947783,602.05,599.45,0.28976577]
[1745620626140,1.26947783,602.05,599.46,0.3057513]
[1745620626546,1.26947783,602.05,599.47,0.3057513]
[1745620626747,1.26947783,602.05,599.48,0.3057513]
[1745620627049,1.26947783,602.05,599.49,0.3057513]
[1745620627243,1.26947783,602.05,599.46,0.3057513]
[1745620627446,1.26947783,602.05,599.47,0.3057513]
[1745620627643,1.26947783,602.05,599.45,0.28976577]
[1745620627848,1.26947783,602.05,599.48,0.30574287]
[1745620628048,1.26947783,601.8,599.49,0.30574287]
[1745620628249,1.26947783,601.8,599.5,0.30574287]
[1745620628547,1.26947783,601.8,599.51,0.30574287]
[1745620628748,1.26947783,601.8,599.46,0.30574287]
[1745620628942,1.26947783,601.8,599.47,0.30574287]
[1745620629149,1.26947783,601.8,599.48,0.30574287]
[1745620629344,1.26947783,601.8,599.49,0.30573877]
[1745620629544,1.26947783,601.8,599.5,0.30573877]
[1745620629849,1.26947783,601.67,599.51,0.30573877]
[1745620630044,1.26947783,601.67,599.52,0.30573877]
[1745620630246,1.26947783,601.67,599.53,0.30573877]
[1745620630446,0.28982248,601.66,599.54,0.30573877]
[1745620630648,0.28982248,601.66,599.55,0.30573877]
[1745620630852,0.28982248,601.66,599.47,0.28982248]
[1745620631051,0.28982248,601.66,599.48,0.30573627]
[1745620631350,0.28982248,601.66,599.49,0.30573627]
[1745620631550,0.28982248,601.66,599.5,0.30573627]
[1745620631750,0.28982248,601.66,599.48,0.30573627]
[1745620631951,1.26947783,601.63,599.49,0.30573627]
[1745620632151,1.26947783,601.63,599.5,0.30573627]
[1745620632451,1.26947783,601.63,599.2,1.05670979]
[1745620632651,1.26947783,601.63,599.21,0.30570896]
[1745620632850,1.26947783,601.63,599.22,0.30570896]
[1745620633150,1.26947783,601.63,599.23,0.30570896]
[1745620633347,0.28983697,601.62,599.24,0.30570896]
[1745620633550,0.28983697,601.62,599.25,0.30570896]
[1745620633745,0.28983697,601.62,599.23,0.28983697]
[1745620633746,0.28983697,601.62,599.26,0.30570896]
[1745620633951,0.28983697,601.62,599.27,0.30570896]
[1745620634153,0.28983697,601.62,599.23,0.28983697]
[1745620634346,0.28983697,601.62,599.24,1.1097083]
[1745620634547,0.28983697,601.62,599.25,0.3057083]
[1745620634753,0.28983697,601.62,599.26,0.3057083]
[1745620634950,0.28983697,601.62,599.27,0.3057083]
[1745620635147,1.26947783,601.8,599.28,0.3057083]
[1745620635349,1.26947783,601.8,599.29,0.3057083]
[1745620635554,1.26947783,601.8,599.3,0.3057083]
[1745620635753,1.26947783,601.8,599.24,0.804]
[1745620635951,1.26947783,601.8,599.25,0.30570387]
[1745620636154,1.26947783,601.7,599.29,1.05670979]
[1745620636350,1.26947783,601.7,599.3,0.30570387]
[1745620636649,1.26947783,601.7,599.31,0.30570387]
[1745620636952,1.26947783,601.7,599.32,0.30570387]
[1745620637154,1.26947783,601.7,599.33,0.30570387]
[1745620637357,1.26947783,601.7,599.29,1.05670979]
[1745620637655,1.26947783,601.7,599.3,0.30569019]
[1745620637954,1.26947783,601.7,599.31,0.30569019]
[1745620638155,1.26947783,601.7,599.32,0.30569019]
[1745620638354,1.26947783,601.7,599.33,0.30569019]
[1745620638556,1.26947783,601.7,599.34,0.30569019]
[1745620638751,1.26947783,601.7,599.35,0.30569019]
[1745620639051,1.26947783,601.7,599.36,0.30569048]
[1745620639254,1.26947783,601.7,599.37,0.30569048]
[1745620639456,0.28980921,601.69,599.38,0.30569048]
[1745620639657,0.28980921,601.69,599.39,0.30569048]
[1745620639954,0.28980921,601.69,599.4,0.30569048]
[1745620640156,0.28980921,601.69,599.32,0.30569048]
[1745620641057,1.26947783,601.78,599.32,0.30569048]
[1745620641850,0.28974647,601.77,599.32,0.30569048]
[1745620642356,0.28974647,601.77,599.29,0.30569048]
[1745620642556,0.28974647,601.77,599.3,0.30569048]
[1745620642757,0.28974647,601.77,599.29,0.30569048]
[1745620642957,0.28974647,601.77,599.3,0.30569048]
[1745620643152,0.28974647,601.77,599.29,0.30569048]
[1745620643355,0.28974647,601.77,599.3,0.30569048]
[1745620643652,0.28974647,601.77,599.31,0.30569048]
[1745620643856,0.28974647,601.77,599.29,0.30569048]
[1745620644051,1.26947783,602.82,599.3,0.30569048]
[1745620644256,1.26947783,602.82,599.25,0.30569048]
[1745620644553,1.26947783,602.82,599.26,0.30569048]
[1745620644757,1.26947783,602.9,599.25,0.30569048]
[1745620645054,0.28963675,602.81,599.26,0.59532723]
[1745620645251,1.26947783,602.9,599.27,0.30569048]
[1745620646459,0.28962469,602.89,599.27,0.30569048]
[1745620647062,1.26947783,602.9,599.24,0.804]
[1745620647363,1.26947783,602.9,599.25,0.30557875]
[1745620647563,0.28962711,602.89,599.25,0.59520586]
[1745620647765,0.28962711,602.89,599.26,0.30557875]
[1745620648764,0.28962711,602.89,599.27,0.3055791]
[1745620648965,0.28962711,602.89,599.26,0.3055791]
[1745620649168,0.28962711,602.89,599.27,0.3055791]
[1745620649460,0.28962711,602.89,599.26,0.3055791]
[1745620649661,0.28962711,602.89,599.27,0.3055791]
[1745620649864,0.28962711,602.89,599.28,0.3055791]
[1745620650060,0.28962711,602.89,599.29,0.3055791]
[1745620650265,0.28962711,602.89,599.25,0.28962711]
[1745620650465,0.28962711,602.89,599.26,0.30558019]
[1745620650662,0.28962711,602.89,599.27,0.30558019]
[1745620650866,0.28962711,602.89,599.28,0.30558019]
[1745620651068,0.28962711,602.89,599.29,0.30558019]
[1745620651366,0.28962711,602.89,599.3,0.30558019]
[1745620651566,0.28962711,602.89,599.31,0.30558019]
[1745620651767,0.28962711,602.89,599.32,0.30558019]
[1745620652067,0.28962711,602.89,599.33,0.30563083]
[1745620652266,0.28962711,602.89,599.34,0.30563083]
[1745620652460,0.28962711,602.89,599.35,0.30563083]
[1745620652664,0.28962711,602.89,599.36,0.30563083]
[1745620652864,1.26947783,602.38,599.37,0.30563083]
[1745620653070,1.26947783,602.38,599.38,0.30563083]
[1745620653370,1.26947783,602.38,599.39,0.30563083]
[1745620653564,1.26947783,602.38,599.24,0.804]
[1745620653765,1.26947783,602.38,599.25,0.30563815]
[1745620653970,1.26947783,602.38,599.26,0.30563815]
[1745620654169,1.26947783,602.38,599.27,0.30563815]
[1745620654370,0.28972114,602.37,599.28,0.30563815]
[1745620654666,0.28972114,602.37,599.29,0.30563815]
[1745620654869,0.28972114,602.37,599.3,0.30563815]
[1745620655068,0.28972114,602.37,599.31,0.30563815]
[1745620655269,0.28972114,602.37,599.32,0.30562799]
[1745620655468,0.28972114,602.37,599.33,0.30562799]
[1745620655665,0.28972114,602.37,599.34,0.30562799]
[1745620655666,1.26947783,602.31,599.34,0.30562799]
[1745620655865,1.26947783,602.31,599.35,0.30562799]
[1745620656069,1.26947783,602.31,599.36,0.30562799]
[1745620656270,1.26947783,602.31,599.37,0.30562799]
[1745620656470,1.26947783,602.31,599.38,0.30562799]
[1745620656671,1.26947783,602.31,599.39,0.30562799]
[1745620656971,1.26947783,602.31,599.4,0.30561739]
[1745620657173,1.26947783,602.31,599.41,0.30561739]
[1745620657466,0.28971994,602.3,599.42,0.30561739]
[1745620657670,0.28971994,602.3,599.43,0.30561739]
[1745620657870,0.28971994,602.3,599.45,1.05670979]
[1745620657871,1.26947783,601.89,599.45,1.05670979]
[1745620658066,1.26947783,601.89,599.46,0.30561739]
[1745620658267,1.26947783,601.89,599.47,0.30561739]
[1745620658566,1.26947783,601.89,599.48,0.30561739]
[1745620658770,1.26947783,601.89,599.49,0.30561739]
[1745620658970,1.26947783,601.89,599.5,0.30561739]
[1745620659173,1.26947783,601.89,599.51,0.30561739]
[1745620659364,1.26947783,601.89,599.52,0.30561739]
[1745620659569,1.26947783,601.89,599.53,0.30561739]
[1745620659870,1.26947783,601.89,599.54,0.30561739]
[1745620660072,0.2897332,601.88,599.45,1.05670979]
[1745620660370,0.2897332,601.88,599.47,1.05670979]
[1745620660570,0.2897332,601.88,599.48,0.30560521]
[1745620660773,0.2897332,601.88,599.49,0.30560521]
[1745620661073,0.2897332,601.88,599.5,0.30560521]
[1745620661273,0.2897332,601.88,599.51,0.30560521]
[1745620661469,0.2897332,601.88,599.52,0.30560521]
[1745620661670,0.2897332,601.88,599.53,0.30560521]
[1745620661872,0.2897332,601.88,599.54,0.30560521]
[1745620662074,0.2897332,601.88,599.47,1.05670979]
[1745620662075,1.26947783,601.89,599.55,0.30560521]
[1745620662373,1.26947783,601.89,599.56,0.30560521]
[1745620662573,1.26947783,601.89,599.57,0.30560521]
[1745620662871,1.26947783,601.89,599.58,0.30560521]
[1745620663068,1.26947783,601.89,599.59,0.30560521]
[1745620663268,0.28973079,601.88,599.59,0.30560521]
[1745620663470,0.28973079,601.88,599.6,0.30560462]
[1745620663674,0.28973079,601.88,599.61,0.30560462]
[1745620663875,0.28973079,601.88,599.62,0.30560462]
[1745620664075,0.28973079,601.88,599.63,0.30560462]
[1745620664277,0.28973079,601.88,599.64,0.30560462]
[1745620664474,0.28973079,601.88,599.65,0.30560462]
[1745620664676,0.28973079,601.88,599.66,0.30560462]
[1745620664971,0.28973079,601.88,599.48,1.05670979]
[1745620665171,1.26947783,601.9,599.49,0.30560432]
[1745620665471,1.26947783,601.9,599.5,0.30560432]
[1745620665673,1.26947783,601.9,599.51,0.30560432]
[1745620665971,1.26947783,601.9,599.52,0.30560432]
[1745620666177,1.26947783,601.89,599.54,1.05670979]
[1745620666372,1.55919897,601.89,599.55,0.30560432]
[1745620666576,1.55919897,601.89,599.56,0.30560432]
[1745620666779,1.55919897,601.89,599.57,0.30560432]
[1745620666980,1.55919897,601.89,599.58,0.30560432]
[1745620667180,1.55919897,601.89,599.59,0.30560432]
[1745620667381,1.55919897,601.89,599.6,0.30560432]
[1745620667575,1.55919897,601.89,599.61,0.30560432]
[1745620667779,1.55919897,601.89,599.62,0.30560432]
[1745620667980,1.55919897,601.89,599.63,0.30560432]
[1745620668277,1.26947783,601.89,599.64,0.30560432]
[1745620668481,1.26947783,601.89,599.24,2.07205175]
[1745620668482,1.26947783,602.06,599.65,0.30553092]
[1745620668678,1.26947783,602.06,599.52,0.30553092]
[1745620668877,1.26947783,602.06,599.53,0.30553092]
[1745620669078,1.26947783,602.06,599.52,0.30553092]
[1745620669281,0.28965483,602.05,599.52,0.30553092]
[1745620671080,1.26947783,602.06,599.52,0.30553092]
[1745620671284,1.26947783,603.16,599.52,0.30553092]
[1745620671485,1.26947783,603.16,599.25,0.30553092]
[1745620671686,1.26947783,603.16,599.24,0.804]
[1745620671986,1.26947783,603.16,599.25,0.30550382]
[1745620672387,0.28955481,603.15,599.25,0.59505863]
[1745620672587,0.28955481,603.15,599.26,0.30550382]
[1745620674090,1.26947783,603.17,599.26,0.30550382]
[1745620674284,1.26947783,603.17,599.25,0.30550382]
[1745620675291,1.26947783,603.14,599.25,0.59505742]
[1745620675590,1.26947783,603.14,599.26,0.30550382]
[1745620677392,1.26947783,603.14,599.25,0.30550382]
[1745620677587,1.26947783,603.14,599.26,0.30550382]
[1745620677794,1.26947783,603.14,599.25,0.30550382]
[1745620678088,0.28955722,603.13,599.25,0.28955722]
[1745620678391,0.28955722,603.13,599.26,0.30550015]
[1745620678691,0.28955722,603.13,599.27,0.30550015]
[1745620678992,0.28955722,603.13,599.28,0.30550015]
[1745620679190,0.28955722,603.13,599.29,0.30550015]
[1745620679388,0.28955722,603.13,599.3,0.30550015]
[1745620679589,0.28955722,603.13,599.31,0.30550015]
[1745620679790,0.28955722,603.13,599.32,0.30550015]
[1745620680090,1.26947783,603.15,599.33,0.30550015]
[1745620680295,1.26947783,603.15,599.34,0.30550015]
[1745620680490,1.26947783,603.15,599.35,0.30550015]
[1745620680690,1.26947783,603.15,599.36,0.30550015]
[1745620680989,1.26947783,603.15,599.37,0.30550015]
[1745620681190,1.26947783,603.15,599.38,0.30549963]
[1745620681393,1.26947783,603.15,599.24,0.804]
[1745620681394,0.28955601,603.14,599.39,0.30549963]
[1745620681596,1.26947783,602.5,599.4,0.30549963]
[1745620681795,1.26947783,602.5,599.41,0.30549963]
[1745620681995,1.26947783,602.5,599.42,0.30549963]
[1745620682193,1.26947783,602.5,599.43,0.30549963]
[1745620682395,1.26947783,602.5,599.44,0.30549963]
[1745620682596,1.26947783,602.5,599.45,0.30547223]
[1745620682797,1.26947783,602.5,599.46,0.30547223]
[1745620682990,1.26947783,602.5,599.47,0.30547223]
[1745620683194,1.26947783,602.5,599.48,0.30547223]
[1745620683391,1.26947783,602.5,599.49,0.30547223]
[1745620683598,1.26947783,602.5,599.5,0.30547223]
[1745620683791,1.26947783,602.5,599.51,0.30547223]
[1745620683995,1.26947783,602.5,599.52,0.30547223]
[1745620684197,1.26947783,602.5,599.53,0.3054461]
[1745620684391,0.28960421,602.49,599.54,0.3054461]
[1745620684591,1.26947783,602.37,599.56,1.05670979]
[1745620684792,1.26947783,602.37,599.57,0.3054461]
[1745620684996,1.26947783,602.37,599.58,0.3054461]
[1745620685198,1.26947783,602.37,599.59,0.3054461]
[1745620685496,1.26947783,602.37,599.6,0.3054461]
[1745620685690,1.26947783,602.37,599.56,1.05670979]
[1745620685896,1.26947783,602.37,599.57,0.30546429]
[1745620686196,1.26947783,602.37,599.58,0.30546429]
[1745620686397,1.26947783,602.37,599.59,0.30546429]
[1745620686595,1.26947783,602.37,599.6,0.30546429]
[1745620686796,1.26947783,602.37,599.61,0.30546429]
[1745620686997,2.15987547,602.52,599.46,0.28959457]
[1745620686998,1.26947783,602.44,599.62,0.30546429]
[1745620687194,1.26947783,602.44,599.63,0.30546429]
[1745620687397,0.28958734,602.43,599.64,0.30546429]
[1745620687593,0.28958734,602.43,599.65,0.30546429]
[1745620687797,0.28958734,602.43,599.66,0.30546429]
[1745620688099,0.28958734,602.43,599.55,1.05670979]
[1745620688100,0.28958734,602.43,599.67,0.30546429]
[1745620688397,0.28958734,602.43,599.68,0.30546429]
[1745620688597,0.28958734,602.43,599.69,0.30546429]
[1745620688893,0.28958734,602.43,599.7,0.30546429]
[1745620689098,1.26947783,602.44,599.71,0.30546429]
[1745620689401,1.26947783,602.44,599.72,0.30546429]
[1745620689698,1.26947783,602.44,599.73,0.30546429]
[1745620689898,1.26947783,602.44,599.74,0.30546429]
[1745620690099,1.26947783,602.51,599.75,0.30546429]
[1745620690400,0.28957529,602.43,599.76,0.30546429]
[1745620690700,1.26947783,602.51,599.77,0.30546152]
[1745620690900,1.26947783,602.51,599.78,0.30546152]
[1745620691199,1.26947783,602.51,599.79,0.30546152]
[1745620691399,1.26947783,602.51,599.8,0.30546152]
[1745620691600,1.26947783,602.57,599.81,0.30546152]
[1745620691900,1.26947783,602.57,599.82,0.30546152]
[1745620692101,1.26947783,602.57,599.83,0.30546152]
[1745620692301,1.26947783,602.57,599.84,0.30546439]
[1745620692499,1.26947783,602.57,599.85,0.30546439]
[1745620692699,0.28955963,602.56,599.86,0.30546439]
[1745620692899,0.28955963,602.56,599.87,0.30546439]
[1745620693096,0.28955963,602.56,599.88,0.30546439]
[1745620693296,0.28955963,602.56,599.89,0.30546439]
[1745620693497,0.28955963,602.56,599.9,0.30546439]
[1745620693708,0.28955963,602.56,599.91,0.30546439]
[1745620693902,0.28955963,602.56,599.92,0.30546439]
[1745620694101,0.28955963,602.56,599.93,0.30546439]
[1745620694301,0.28955963,602.56,599.94,0.30546439]
[1745620694502,1.26947783,602.43,599.95,0.30546439]
[1745620694698,1.26947783,602.43,599.96,0.30546439]
[1745620694896,1.26947783,602.43,599.97,0.30546439]
[1745620695100,1.26947783,602.43,599.98,0.30546439]
[1745620695301,1.26947783,602.43,599.99,0.30546439]
[1745620695603,1.26947783,602.43,600.0,0.30546439]
[1745620695801,1.26947783,602.43,600.01,0.30546439]
[1745620696001,1.26947783,602.43,600.02,0.30546439]
[1745620696201,1.26947783,602.43,600.03,0.30546439]
[1745620696397,0.28957649,602.42,599.81,0.28957649]
[1745620696598,0.28957649,602.42,599.82,0.30546439]
[1745620696803,1.26947783,602.41,599.83,0.30546439]
[1745620697003,1.26947783,602.41,599.81,0.28957649]
[1745620697203,1.26947783,602.41,599.82,0.30545909]
[1745620697404,1.26947783,602.41,599.83,0.30545909]
[1745620697604,1.26947783,602.41,599.84,0.30545909]
[1745620697909,1.26947783,602.41,599.85,0.30545909]
[1745620698105,1.26947783,602.41,599.86,0.30545909]
[1745620698307,1.26947783,602.41,599.87,0.30545909]
[1745620698506,1.26947783,602.41,599.88,0.30545909]
[1745620698711,1.26947783,602.41,599.89,0.30545909]
[1745620698905,1.26947783,602.41,599.9,0.30545909]
[1745620699204,1.26947783,602.41,599.91,0.30545909]
[1745620699406,0.2895789,602.4,599.92,0.30545909]
[1745620699604,0.2895789,602.4,599.93,0.30545909]
[1745620699810,1.26947783,602.33,599.94,0.30545909]
[1745620700004,1.26947783,602.33,599.95,0.30545909]
[1745620700204,1.26947783,602.33,599.96,0.30545909]
[1745620700408,1.26947783,602.33,599.97,0.30545909]
[1745620700610,1.26947783,602.33,599.98,0.30545909]
[1745620700808,1.26947783,602.33,599.99,0.30545909]
[1745620701009,1.26947783,602.33,600.0,0.30545909]
[1745620701403,1.26947783,602.33,600.01,0.30545909]
[1745620701604,1.26947783,602.33,600.02,0.30545909]
[1745620701809,1.26947783,602.33,599.7,1.05670979]
[1745620702005,1.26947783,602.33,599.71,0.30545871]
[1745620702305,1.26947783,602.26,599.77,1.05670979]
[1745620702711,1.26947783,602.26,599.78,0.30545715]
[1745620702905,1.26947783,602.26,599.79,0.30545715]
[1745620703205,1.26947783,602.26,599.8,0.30545715]
[1745620703410,1.26947783,602.26,599.81,0.30545715]
[1745620703611,1.26947783,602.26,599.82,0.30545715]
[1745620703805,1.26947783,602.26,599.83,0.30545715]
[1745620704009,1.26947783,602.26,599.84,0.30545715]
[1745620704211,1.26947783,602.22,599.85,0.30545715]
[1745620704411,1.26947783,602.22,599.86,0.30545715]
[1745620704611,1.26947783,602.22,599.87,0.30545715]
[1745620704809,1.26947783,602.22,599.88,0.30545715]
[1745620705112,1.26947783,602.22,599.89,0.30545715]
[1745620705307,0.28958252,602.21,599.9,0.30545715]
[1745620705506,0.28958252,602.21,599.91,0.30545715]
[1745620705711,0.28958252,602.21,599.92,0.30545715]
[1745620705909,0.28958252,602.21,599.93,0.30545715]
[1745620706114,0.28958252,602.21,599.94,0.30545715]
[1745620706312,0.28958252,602.21,599.95,0.30545715]
[1745620706512,0.28958252,602.21,599.96,0.30545715]
[1745620706813,0.28958252,602.21,599.97,0.30545715]
[1745620707014,0.28958252,602.21,599.98,0.30545715]
[1745620707314,1.26947783,602.22,599.99,0.30545715]
[1745620707514,1.26947783,602.22,600.0,0.30545715]
[1745620707709,1.26947783,602.22,600.01,0.30545715]
[1745620707911,1.26947783,602.14,600.02,0.30545715]
[1745620708115,1.26947783,602.14,600.03,0.30545715]
[1745620708314,0.28958493,602.13,599.88,0.28958493]
[1745620708514,0.28958493,602.13,599.89,0.30546025]
[1745620708708,0.28958493,602.13,599.9,0.30546025]
[1745620708912,0.28958493,602.13,599.91,0.30546025]
[1745620709111,0.28958493,602.13,599.92,0.30546025]
[1745620709309,0.28958493,602.13,599.93,0.30546025]
[1745620709515,0.28958493,602.13,599.94,0.30546025]
[1745620709816,0.28958493,602.13,599.95,0.30546025]
[1745620710017,0.28958493,602.13,599.96,0.30546025]
[1745620710213,0.28958493,602.13,599.97,0.30546025]
[1745620710412,0.28958493,602.13,599.98,0.30546025]
[1745620710717,0.28958493,602.13,599.99,0.30546025]
[1745620710917,0.28958493,602.13,600.0,0.30546025]
[1745620711217,0.28958493,602.13,600.01,0.30546025]
[1745620711417,0.28958493,602.13,599.89,0.30546025]
[1745620711620,0.28958493,602.13,599.9,0.30546025]
[1745620711813,0.28958493,602.13,599.91,0.30546025]
[1745620712012,0.28958493,602.13,599.92,0.30546025]
[1745620712218,0.28958493,602.13,599.93,0.30546025]
[1745620712513,0.28958493,602.13,599.94,0.30546025]
[1745620712718,0.28958493,602.13,599.89,0.30546025]
[1745620713015,1.26947783,602.14,599.89,0.30546025]
[1745620713214,1.26947783,602.14,599.85,1.05670979]
[1745620713420,1.26947783,602.14,599.86,0.30552295]
[1745620713719,1.26947783,602.26,599.86,0.30552295]
[1745620713919,1.26947783,602.26,599.66,0.30552295]
[1745620714112,0.28961987,602.13,599.87,0.28961987]
[1745620714317,1.26947783,602.26,599.88,0.30552295]
[1745620714516,1.26947783,602.26,599.89,0.30552295]
[1745620714713,1.26947783,602.26,599.9,0.30552295]
[1745620715013,1.26947783,602.26,599.91,0.30552295]
[1745620715213,1.26947783,602.26,599.92,0.30552295]
[1745620715419,1.26947783,602.03,599.93,0.30552295]
[1745620715618,1.26947783,602.03,599.69,1.05670979]
[1745620715814,1.26947783,602.03,599.89,0.28963554]
[1745620716014,1.26947783,602.03,599.9,0.30554329]
[1745620716315,1.26947783,602.03,599.91,0.30554329]
[1745620716516,1.26947783,602.03,599.92,0.30554098]
[1745620716711,1.26947783,602.03,599.69,1.05670979]
[1745620716712,1.26947783,602.03,599.93,0.30554098]
[1745620716917,1.26947783,602.03,599.7,0.30554098]
[1745620717118,1.26947783,602.03,599.71,0.30554098]
[1745620717321,0.28964398,602.02,599.72,0.30554098]
[1745620717512,0.28964398,602.02,599.73,0.30554098]
[1745620717715,0.28964398,602.02,599.74,0.30554098]
[1745620718021,0.28964398,602.02,599.75,0.30554098]
[1745620718215,0.28964398,602.02,599.76,0.30554098]
[1745620718414,0.28964398,602.02,599.77,0.30554098]
[1745620718718,0.28964398,602.02,599.78,0.30554098]
[1745620718918,0.28964398,602.02,599.79,0.30554098]
[1745620719118,1.26947783,602.05,599.8,0.30554098]
[1745620719321,1.26947783,602.05,599.81,0.30554098]
[1745620719520,1.26947783,602.05,599.82,0.30554098]
[1745620719719,1.26947783,602.05,599.83,0.3055069]
[1745620720019,1.26947783,602.05,599.84,0.3055069]
[1745620720322,0.28964398,602.04,599.85,0.3055069]
[1745620720620,0.28964398,602.04,599.86,0.3055069]
[1745620720821,0.28964398,602.04,599.87,0.3055069]
[1745620721120,0.28964398,602.04,599.88,0.3055069]
[1745620721321,0.28964398,602.04,599.89,0.3055069]
[1745620721522,0.28964398,602.04,599.9,0.3055069]
[1745620721822,0.28964398,602.04,599.91,0.3055069]
[1745620722015,0.28964398,602.04,599.92,0.3055069]
[1745620722220,0.28964398,602.04,599.93,0.3055069]
[1745620722517,0.28964398,602.04,599.94,0.3055069]
[1745620722721,0.28964398,602.04,599.95,0.3055069]
[1745620722921,0.28964398,602.04,599.76,0.28964398]
[1745620723224,0.28964398,602.04,599.77,0.3055078]
[1745620723521,0.28964398,602.04,599.78,0.3055078]
[1745620723717,0.28964398,602.04,599.79,0.3055078]
[1745620723917,0.28964398,602.04,599.8,0.3055078]
[1745620724116,0.28964398,602.04,599.81,0.3055078]
[1745620724419,0.28964398,602.04,599.82,0.3055078]
[1745620724721,0.28964398,602.04,599.83,0.3055077]
[1745620724922,0.28964398,602.04,599.84,0.3055077]
[1745620725122,1.26947783,602.19,599.85,0.3055077]
[1745620725323,1.26947783,602.19,599.86,0.3055077]
[1745620725518,1.26947783,602.19,599.87,0.3055077]
[1745620725718,1.26947783,602.19,599.88,0.3055077]
[1745620725918,1.26947783,602.19,599.89,0.3055077]
[1745620726122,1.26947783,602.19,599.9,0.3055077]
[1745620726320,0.28961264,602.18,599.91,0.3055077]
[1745620726623,0.28961264,602.18,599.92,0.3055077]
[1745620726823,0.28961264,602.18,599.93,0.3055077]
[1745620727024,0.28961264,602.18,599.81,0.28961264]
[1745620727025,0.28961264,602.18,599.94,0.3055077]
[1745620727219,0.28961264,602.18,599.95,0.3055077]
[1745620727425,0.28961264,602.18,599.96,0.3055077]
[1745620727625,0.28961264,602.18,599.97,0.3055077]
[1745620727921,0.28961264,602.18,599.98,0.3055077]
[1745620728225,0.28961264,602.18,599.99,0.3055077]
[1745620728425,0.28961264,602.18,600.0,0.3055077]